bitfinex/quotes_ETHUSD_20250331
["timestamp","ask_amount","ask_price","bid_price","bid_amount"]
[1743392286836,5.51998,1811.6,1811.4,5.46]
[1743392287170,11.56977,1811.7,1811.4,5.46]
[1743392287373,6.05,1811.7,1811.4,5.46]
[1743392287569,11.56979,1811.7,1811.4,5.46]
[1743392290977,5.52028,1811.5,1811.2,1.13145955]
[1743392291273,6.624327,1811.5,1811.4,5.459]
[1743392291459,1.104047,1811.5,1811.4,5.459]
[1743392291665,5.52004,1811.6,1811.4,5.459]
[1743392292351,11.56972,1811.7,1811.4,5.459]
[1743392293657,17.08963,1811.7,1811.4,5.459]
[1743392293859,11.56972,1811.7,1811.4,5.459]
[1743392294376,6.05,1811.7,1811.1,38.15417]
[1743392294582,5.52105,1811.3,1811.1,31.876]
[1743392294882,6.293,1811.2,1811.1,31.876]
[1743392299987,3.0,1811.5,1811.1,31.876]
[1743392299988,6.2924,1811.4,1811.1,31.876]
[1743392300164,6.2924,1811.4,1811.1,32.6703]
[1743392300688,11.5706,1811.4,1811.1,32.6703]
[1743392300863,6.05,1811.4,1811.1,38.19176]
[1743392301563,11.57062,1811.4,1811.1,32.6703]
[1743392302092,6.05,1811.4,1811.1,32.6703]
[1743392302468,5.52104,1811.3,1811.1,31.876]
[1743392302798,11.04219,1811.3,1811.2,5.458]
[1743392303100,5.52059,1811.4,1811.2,5.458]
[1743392303296,20.09072,1811.5,1811.2,5.458]
[1743392303471,14.5703,1811.5,1811.2,5.458]
[1743392303661,20.09077,1811.5,1811.2,5.458]
[1743392304972,14.5703,1811.5,1811.2,5.458]
[1743392305173,6.05,1811.5,1811.3,5.52077]
[1743392305384,6.05,1811.5,1811.4,1.3443]
[1743392305890,6.05,1811.5,1811.4,6.86489]
[1743392306114,6.05,1811.5,1811.4,1.3443]
[1743392306606,12.34141,1811.8,1811.4,1.3443]
[1743392307204,5.51985,1811.7,1811.4,1.3443]
[1743392307402,12.34141,1811.8,1811.4,1.3443]
[1743392307699,12.34141,1811.8,1811.4,6.86488]
[1743392308265,6.05,1811.8,1811.5,5.52022]
[1743392308592,6.05,1811.8,1811.6,5.457]
[1743392309610,3.7797,1812.0,1811.7,0.8191]
[1743392309611,8.51883,1812.0,1811.7,0.8191]
[1743392309786,14.03783,1812.0,1811.7,0.8191]
[1743392310513,14.03783,1812.0,1811.4,0.55]
[1743392310680,6.03472,1810.8,1810.7,9.78e-06]
[1743392310871,14.44868095,1810.8,1809.9,0.8191]
[1743392311072,12.08488,1810.8,1810.2,0.8191]
[1743392311315,5.52198,1811.0,1810.4,5.52342]
[1743392311609,5.5219,1811.0,1810.5,0.8191]
[1743392311809,5.5222,1810.9,1810.5,0.8191]
[1743392312013,11.04398,1811.0,1810.5,0.8191]
[1743392312219,5.52211,1810.9,1810.5,0.8191]
[1743392314103,5.52211,1810.9,1810.6,5.534]
[1743392315185,5.52211,1810.9,1810.7,5.529]
[1743392315823,5.5219,1811.0,1810.7,5.529]
[1743392316321,5.52215,1810.9,1810.7,5.529]
[1743392316915,11.04398,1811.0,1810.7,5.529]
[1743392317091,5.5219,1811.0,1810.7,5.529]
[1743392317285,5.52218,1810.9,1810.7,5.529]
[1743392317616,6.05,1811.2,1810.8,0.7557]
[1743392317829,6.05,1811.2,1810.9,5.52207]
[1743392317982,11.5709,1811.3,1810.9,5.52207]
[1743392319309,11.5709,1811.3,1810.9,6.61521116]
[1743392321138,17.09208,1811.3,1810.9,1.09314116]
[1743392321337,5.52134,1811.2,1810.9,1.09314116]
[1743392327938,11.5709,1811.3,1810.9,1.09314116]
[1743392328237,11.5709,1811.3,1810.9,6.61513116]
[1743392328733,15.38002,1811.5,1811.1,5.52148]
[1743392328939,5.52078,1811.4,1811.2,5.48]
[1743392329111,11.04167,1811.4,1811.2,5.48]
[1743392329312,5.52089,1811.3,1811.2,5.48]
[1743392331929,6.05,1811.5,1811.2,25.50097]
[1743392332135,6.05,1811.5,1811.2,19.98]
[1743392332136,11.57047,1811.5,1811.2,19.98]
[1743392333540,17.09101,1811.5,1811.2,19.98]
[1743392334245,11.57047,1811.5,1811.2,19.98]
[1743392335837,5.52047,1811.5,1811.2,19.98]
[1743392336223,11.04026,1811.6,1811.2,19.98]
[1743392336960,11.04026,1811.6,1811.2,21.08413899]
[1743392337332,5.51998,1811.6,1811.2,26.60527899]
[1743392338263,11.04024,1811.6,1811.2,26.60527899]
[1743392340763,9.30068,1811.7,1811.2,26.60511899]
[1743392340938,14.82059,1811.7,1811.3,5.52077]
[1743392341258,9.30068,1811.7,1811.3,5.52077]
[1743392341562,9.30068,1811.7,1811.4,14.5]
[1743392341763,5.51999,1811.6,1811.4,14.5]
[1743392344069,10.782685,1811.7,1811.4,14.5]
[1743392344270,7.001785,1811.7,1811.4,15.3096]
[1743392344444,5.51978,1811.7,1811.4,15.3096]
[1743392344638,5.51937,1811.8,1811.4,15.3096]
[1743392345068,5.51987,1811.7,1811.4,15.3096]
[1743392345235,11.03977,1811.7,1811.4,15.3096]
[1743392345436,5.52001,1811.6,1811.4,15.3096]
[1743392345749,5.52001,1811.6,1811.4,14.5]
[1743392348072,5.51987,1811.7,1811.4,14.5]
[1743392348275,11.03984,1811.7,1811.4,14.5]
[1743392348850,5.51987,1811.7,1811.4,14.5]
[1743392349350,13.73998788,1811.8,1811.4,20.0204]
[1743392349557,5.51971,1811.7,1811.4,20.0204]
[1743392349778,5.51971,1811.7,1811.4,14.5]
[1743392352090,11.03903,1811.8,1811.4,14.5]
[1743392352380,5.51981,1811.7,1811.4,14.5]
[1743392353778,5.51981,1811.7,1811.4,20.02058]
[1743392353984,5.51939,1811.8,1811.4,25.54096]
[1743392354181,5.51819,1812.2,1811.8,0.8269]
[1743392354485,7.309456,1812.2,1811.9,5.457]
[1743392354852,7.309456,1812.2,1812.0,14.5]
[1743392355174,5.51845,1812.1,1812.0,14.5]
[1743392356093,8.51822,1812.2,1812.0,14.5]
[1743392356382,11.56787,1812.3,1812.0,14.5]
[1743392357083,5.51728,1812.5,1812.1,6.34523]
[1743392357286,3.0,1812.5,1812.1,6.34515]
[1743392357486,8.51729,1812.5,1812.1,6.34515]
[1743392357685,8.51729,1812.5,1812.2,14.5]
[1743392357887,8.51729,1812.5,1812.3,5.456]
[1743392358086,5.51729,1812.5,1812.3,5.456]
[1743392358497,5.51708,1812.6,1812.3,5.456]
[1743392358795,5.51708,1812.6,1812.4,14.5]
[1743392358948,5.51724,1812.5,1812.4,14.5]
[1743392359147,9.8766,1812.7,1812.4,14.5]
[1743392359148,6.8766,1812.7,1812.4,14.5]
[1743392359352,6.05,1812.7,1812.4,20.84428]
[1743392359955,6.05,1812.7,1812.4,6.34428]
[1743392360151,6.05,1812.7,1812.4,0.8269]
[1743392360374,11.56665,1812.7,1812.4,0.8269]
[1743392362378,5.51665,1812.7,1812.5,14.5]
[1743392362689,5.51665,1812.7,1812.4,0.8269]
[1743392363259,5.51665,1812.7,1812.4,15.3269]
[1743392365398,5.51722,1812.6,1812.2,0.8269]
[1743392365559,5.51806,1812.3,1812.2,5.454]
[1743392365894,11.03535,1812.4,1812.2,5.454]
[1743392366189,5.51754,1812.4,1812.2,5.454]
[1743392366397,5.51785,1812.3,1812.2,5.454]
[1743392366894,5.51785,1812.3,1811.9,52.7109]
[1743392367071,5.51785,1812.3,1812.1,5.454]
[1743392367472,5.51785,1812.3,1812.1,19.954]
[1743392368565,5.51815,1812.2,1812.1,19.954]
[1743392369002,5.51815,1812.2,1812.1,14.5]
[1743392369162,5.51815,1812.2,1811.9,31.865]
[1743392369163,5.51868,1812.1,1811.9,31.865]
[1743392369368,11.03743,1812.1,1811.9,37.319]
[1743392369696,5.51876,1812.0,1811.9,51.819]
[1743392370012,5.51876,1812.0,1811.9,31.865]
[1743392370296,5.51947,1811.8,1811.6,5.454]
[1743392370673,11.03913,1811.8,1811.6,19.954]
[1743392371265,5.51968,1811.7,1811.5,5.454]
[1743392371701,5.51998,1811.6,1811.5,5.454]
[1743392376383,5.51998,1811.6,1811.5,14.5]
[1743392376587,5.51998,1811.6,1811.5,19.955]
[1743392376790,5.52105,1811.3,1811.1,32.6105]
[1743392377119,5.52105,1811.3,1811.2,5.455]
[1743392378603,5.5212,1811.2,1811.1,37.31]
[1743392378996,8.5212,1811.2,1811.1,31.855]
[1743392379499,3.0,1811.2,1811.1,31.855]
[1743392379698,12.34364,1811.6,1811.1,0.55]
[1743392380010,5.52034,1811.5,1811.1,6.0715]
[1743392380315,5.52066,1811.4,1811.2,14.5]
[1743392381600,11.0415,1811.4,1811.2,14.5]
[1743392382905,11.04151,1811.4,1811.2,14.5]
[1743392383113,11.04151,1811.4,1811.1,0.55]
[1743392383114,5.52089,1811.3,1811.1,0.55]
[1743392383276,5.52066,1811.4,1811.1,0.55]
[1743392383476,11.04149,1811.4,1811.2,1.10230729]
[1743392384409,5.52066,1811.4,1811.2,1.10230729]
[1743392384710,5.52028,1811.5,1811.2,1.10230729]
[1743392384909,6.05,1811.6,1811.3,6.28829]
[1743392385082,11.56999,1811.6,1811.4,5.455]
[1743392385283,6.05,1811.6,1811.4,5.455]
[1743392385475,8.51973,1811.7,1811.4,5.455]
[1743392385679,14.03969,1811.7,1811.4,5.455]
[1743392386013,8.51973,1811.7,1811.4,5.455]
[1743392386379,14.03968,1811.7,1811.4,5.455]
[1743392386680,5.52,1811.6,1811.4,5.455]
[1743392389013,5.51973,1811.7,1811.4,5.455]
[1743392389190,5.51974,1811.7,1811.4,5.455]
[1743392390490,6.27404,1811.6,1811.5,5.455]
[1743392392806,5.52014,1811.6,1811.5,5.455]
[1743392393618,5.52048,1811.5,1811.2,1.10230729]
[1743392393804,6.27441,1811.5,1811.0,0.7676]
[1743392393995,5.52146,1811.2,1810.9,32.6326]
[1743392394194,11.04292,1811.2,1811.1,5.455]
[1743392394398,5.52146,1811.2,1811.1,5.455]
[1743392395099,5.52091,1811.3,1811.1,5.455]
[1743392395299,11.04146,1811.4,1811.1,5.455]
[1743392395507,5.5206,1811.4,1811.1,5.455]
[1743392395729,5.52093,1811.3,1811.1,5.455]
[1743392396286,11.5704,1811.5,1811.1,10.97638]
[1743392396516,11.5704,1811.5,1811.2,0.7676]
[1743392396718,17.09096,1811.5,1811.2,0.7676]
[1743392397224,5.52061,1811.4,1811.2,0.7676]
[1743392397385,11.5704,1811.5,1811.2,0.7676]
[1743392397590,5.5204,1811.5,1811.2,0.7676]
[1743392398031,6.05,1811.6,1811.3,5.52087]
[1743392398386,5.51979,1811.7,1811.3,5.52087]
[1743392398587,5.51979,1811.7,1811.4,0.7952]
[1743392398808,5.51979,1811.7,1811.5,5.455]
[1743392399501,14.56938,1811.8,1811.5,5.455]
[1743392402825,20.08902,1811.8,1811.5,5.455]
[1743392403032,14.56938,1811.8,1811.5,5.455]
[1743392403516,8.51938,1811.8,1811.5,5.455]
[1743392403899,14.03898,1811.8,1811.5,5.455]
[1743392404404,11.03898,1811.8,1811.5,5.455]
[1743392405034,5.51938,1811.8,1811.5,5.455]
[1743392406040,11.03898,1811.8,1811.5,5.455]
[1743392406328,5.51968,1811.7,1811.5,5.455]
[1743392407110,5.51938,1811.8,1811.5,5.455]
[1743392408438,11.03897,1811.8,1811.5,5.455]
[1743392409235,5.51908,1811.9,1811.5,5.455]
[1743392409408,11.0384,1811.9,1811.5,10.97519]
[1743392410222,11.03844,1811.9,1811.5,10.97519]
[1743392410618,5.51939,1811.8,1811.5,5.455]
[1743392411518,5.51908,1811.9,1811.5,10.97511]
[1743392411720,11.0384,1811.9,1811.5,10.97511]
[1743392412240,5.51908,1811.9,1811.5,16.49524]
[1743392412438,0.8052,1812.2,1811.8,5.51918]
[1743392412645,5.51816,1812.2,1811.9,6.2492]
[1743392413654,5.51858,1812.1,1811.9,6.2492]
[1743392415817,5.5189,1812.0,1811.8,5.453]
[1743392416011,6.702557,1812.0,1811.8,5.453]
[1743392416327,5.51906,1811.9,1811.8,5.453]
[1743392418641,5.51946,1811.8,1811.5,0.8248]
[1743392418817,5.51971,1811.7,1811.3,0.8248]
[1743392419017,6.31864,1811.8,1811.4,5.453]
[1743392419218,5.5197,1811.7,1811.4,5.453]
[1743392420330,11.56918,1811.9,1811.5,0.8248]
[1743392420848,6.05,1811.9,1811.5,6.34494]
[1743392421024,11.56911,1811.9,1811.5,6.34494]
[1743392421527,5.51951,1811.8,1811.5,0.8248]
[1743392423367,5.51988,1811.7,1811.6,5.452]
[1743392423814,6.623805,1811.7,1811.6,5.452]
[1743392426163,11.03899,1811.8,1811.6,5.452]
[1743392426367,5.51938,1811.8,1811.6,5.452]
[1743392427266,11.56907,1811.9,1811.6,5.452]
[1743392427555,17.0884,1811.9,1811.6,6.2768]
[1743392427861,5.51948,1811.8,1811.6,5.452]
[1743392428237,6.676428,1811.8,1811.6,5.452]
[1743392428641,5.51967,1811.7,1811.6,5.452]
[1743392433862,11.03958,1811.7,1811.3,6.61759236]
[1743392434053,5.51998,1811.6,1811.5,5.452]
[1743392434967,5.52051,1811.5,1811.2,32.6404]
[1743392435145,5.52068,1811.4,1811.2,31.865]
[1743392435340,5.52068,1811.4,1811.3,5.452]
[1743392435667,5.52181,1811.1,1810.8,0.7607]
[1743392435845,5.52182,1811.0,1810.9,5.452]
[1743392437448,12.38831,1811.3,1810.9,5.452]
[1743392437449,5.52122,1811.2,1810.9,6.2127]
[1743392437947,11.04267,1811.2,1810.9,6.2127]
[1743392438290,6.05,1811.3,1810.9,6.2127]
[1743392438439,6.05,1811.3,1810.9,11.7348]
[1743392438854,11.57097,1811.3,1810.9,11.7348]
[1743392439050,5.5215,1811.1,1811.0,5.452]
[1743392439255,6.33884,1811.2,1811.0,5.452]
[1743392440073,11.57091,1811.3,1811.0,5.452]
[1743392440279,11.57091,1811.3,1811.1,0.7607]
[1743392440280,6.05,1811.3,1811.1,0.7607]
[1743392440641,11.57097,1811.3,1811.1,0.7607]
[1743392441581,5.5206,1811.4,1811.1,0.7607]
[1743392442573,5.52101,1811.3,1811.1,0.7607]
[1743392442772,5.52101,1811.3,1811.0,6.2127]
[1743392443679,5.5206,1811.4,1811.0,11.73446]
[1743392444041,5.52103,1811.3,1811.0,6.2127]
[1743392444973,5.5212,1811.2,1811.0,6.2127]
[1743392445139,5.5212,1811.2,1811.0,5.452]
[1743392445342,6.33593,1811.3,1811.0,5.452]
[1743392445880,6.33593,1811.3,1810.9,0.55]
[1743392446095,5.52121,1811.2,1811.0,5.452]
[1743392446776,5.52152,1811.1,1810.8,6.28919]
[1743392446943,5.52152,1811.1,1811.0,5.452]
[1743392449362,5.52121,1811.2,1811.0,5.452]
[1743392449558,6.33581,1811.3,1811.0,5.452]
[1743392449858,5.52139,1811.2,1811.0,5.452]
[1743392450260,5.52097,1811.3,1811.0,5.452]
[1743392450698,6.8649,1811.4,1811.1,5.52141]
[1743392450884,12.38563,1811.4,1811.0,10.97359]
[1743392452205,12.38563,1811.4,1811.0,25.47359]
[1743392452497,5.52093,1811.3,1811.0,19.952]
[1743392456003,5.52094,1811.3,1810.8,38.16014]
[1743392456179,9.03652788,1811.4,1810.9,5.451]
[1743392456382,5.52159,1811.1,1810.9,5.451]
[1743392456568,11.04333,1811.1,1810.9,5.451]
[1743392457808,5.52181,1811.0,1810.9,5.451]
[1743392458470,6.32869,1811.1,1810.9,5.451]
[1743392460073,5.52159,1811.1,1810.9,5.451]
[1743392461102,17.89917,1811.3,1810.9,11.75179]
[1743392461274,17.89917,1811.3,1810.9,6.2298]
[1743392461275,5.52123,1811.2,1810.9,6.2298]
[1743392461474,5.52125,1811.2,1810.9,6.2298]
[1743392461708,11.04267,1811.2,1811.0,14.5]
[1743392462074,12.832647,1811.2,1810.9,6.2298]
[1743392462279,12.832647,1811.2,1810.7,5.451]
[1743392462280,2.70102788,1811.0,1810.7,5.451]
[1743392462511,11.0445,1810.9,1810.7,5.451]
[1743392462699,5.52242,1810.8,1810.7,5.451]
[1743392463419,5.52242,1810.8,1810.5,46.372]
[1743392463420,5.52273,1810.7,1810.5,31.872]
[1743392463631,2.70102788,1810.6,1810.4,5.451]
[1743392463791,5.52369,1810.4,1810.3,5.451]
[1743392464317,5.52369,1810.4,1810.1,0.8788]
[1743392464318,5.52425,1810.2,1810.1,5.551]
[1743392464616,8.22527788,1810.2,1810.1,0.1]
[1743392465174,17.27527788,1810.2,1810.1,0.1]
[1743392465379,18.08237788,1810.2,1810.1,0.1]
[1743392465700,18.49506425,1810.2,1810.1,0.1]
[1743392465877,20.89697068,1810.2,1810.1,0.1]
[1743392467117,0.8071,1809.6,1809.2,31.874]
[1743392467419,8.5273,1809.2,1809.1,0.1]
[1743392467625,16.33354179,1809.2,1809.1,0.1]
[1743392467789,13.33354179,1809.2,1809.1,0.1]
[1743392469624,17.14064179,1809.2,1809.1,0.1]
[1743392471027,6.05,1809.2,1809.1,0.1]
[1743392471441,6.05,1809.2,1809.1,5.553]
[1743392472220,5.52688,1809.4,1809.1,5.553]
[1743392472394,5.5273,1809.2,1809.1,0.1]
[1743392472594,5.52701,1809.3,1809.1,0.1]
[1743392472824,5.52701,1809.3,1809.2,14.5]
[1743392473021,6.63238,1809.3,1809.2,14.5]
[1743392473602,5.5273,1809.2,1809.1,0.1]
[1743392475036,9.02802788,1809.2,1809.1,0.1]
[1743392475893,6.327,1809.2,1809.1,0.1]
[1743392477344,9.02802788,1809.2,1809.1,0.1]
[1743392477638,11.19906867,1809.2,1809.1,0.1]
[1743392479812,17.24906867,1809.2,1809.1,0.1]
[1743392484244,17.65484805,1809.2,1809.1,0.1]
[1743392488540,17.24906867,1809.2,1809.1,0.1]
[1743392490718,13.74834079,1809.2,1809.1,0.1]
[1743392491438,17.24116867,1809.2,1809.1,0.1]
[1743392491814,13.74834079,1809.2,1809.1,0.1]
[1743392492054,7.18401375,1809.6,1809.2,0.8295]
[1743392492256,6.05,1809.6,1809.4,0.8295]
[1743392492815,11.57609,1809.6,1809.4,0.8295]
[1743392493547,11.57609,1809.6,1809.3,5.456]
[1743392493548,5.52638,1809.5,1809.3,5.456]
[1743392493747,5.52693,1809.4,1809.2,6.2855]
[1743392494052,5.52699,1809.3,1809.2,5.456]
[1743392494211,5.52693,1809.4,1809.2,5.456]
[1743392494414,6.684028,1809.5,1809.2,5.456]
[1743392494720,5.52639,1809.5,1809.2,5.456]
[1743392495432,5.52674,1809.4,1809.2,5.456]
[1743392495931,5.52639,1809.5,1809.2,5.456]
[1743392496106,11.05302,1809.5,1809.2,5.456]
[1743392496309,5.52639,1809.5,1809.2,5.456]
[1743392497218,5.52639,1809.5,1809.3,0.8295]
[1743392498529,11.57608,1809.6,1809.3,0.8295]
[1743392498714,17.10242,1809.6,1809.3,0.8295]
[1743392499043,17.10244,1809.6,1809.3,0.8295]
[1743392499224,5.52644,1809.5,1809.3,0.8295]
[1743392500034,11.57608,1809.6,1809.3,0.8295]
[1743392501040,17.10239,1809.6,1809.3,0.8295]
[1743392501246,17.1024,1809.6,1809.3,0.8295]
[1743392501625,5.52642,1809.5,1809.3,0.8295]
[1743392501958,5.52699,1809.3,1809.2,5.455]
[1743392502167,11.05368,1809.4,1809.2,5.455]
[1743392502320,5.52699,1809.3,1809.2,5.455]
[1743392502725,5.52669,1809.4,1809.2,5.455]
[1743392502950,11.05366,1809.4,1809.2,5.455]
[1743392503172,6.72090944,1809.4,1809.2,5.455]
[1743392503335,12.24782944,1809.4,1809.2,5.455]
[1743392503540,5.52699,1809.3,1809.2,5.455]
[1743392503851,6.72090944,1809.4,1809.2,5.455]
[1743392504023,5.52699,1809.3,1809.2,5.455]
[1743392505377,6.75177994,1809.3,1809.1,0.1]
[1743392505519,5.5273,1809.2,1809.1,0.1]
[1743392507361,5.52699,1809.3,1809.1,0.1]
[1743392507559,11.05422,1809.3,1809.1,0.1]
[1743392507857,5.5273,1809.2,1809.1,0.1]
[1743392508229,11.05358,1809.4,1809.1,0.1]
[1743392508429,5.52701,1809.3,1809.1,0.1]
[1743392508663,5.52701,1809.3,1809.2,0.7865]
[1743392509253,5.5273,1809.2,1809.1,0.1]
[1743392509431,6.632731,1809.2,1809.1,0.1]
[1743392509767,5.5273,1809.2,1809.1,0.1]
[1743392510924,8.527,1809.3,1809.1,0.1]
[1743392512953,14.05424,1809.3,1809.1,0.1]
[1743392513463,8.527,1809.3,1809.1,0.1]
[1743392513671,14.05428,1809.3,1809.1,0.1]
[1743392514066,5.5273,1809.2,1809.1,0.1]
[1743392514855,6.93273,1809.2,1809.1,0.1]
[1743392515835,9.93273,1809.2,1809.1,0.1]
[1743392516666,15.98273,1809.2,1809.1,0.1]
[1743392521144,9.93273,1809.2,1809.1,0.1]
[1743392522259,3.0,1809.2,1809.1,0.1]
[1743392522643,8.5273,1809.2,1809.1,0.1]
[1743392523398,3.0,1809.2,1809.1,0.1]
[1743392523581,8.5273,1809.2,1809.1,0.1]
[1743392528585,5.52671,1809.4,1809.1,0.1]
[1743392528755,3.0,1809.4,1809.2,0.7769]
[1743392528954,14.05375,1809.4,1809.2,0.7769]
[1743392529170,8.52699,1809.3,1809.2,0.7769]
[1743392529374,14.05425,1809.3,1809.1,0.1]
[1743392529575,5.5273,1809.2,1809.1,0.1]
[1743392530051,14.5773,1809.2,1809.1,0.1]
[1743392530256,15.3952,1809.2,1809.1,0.1]
[1743392530471,17.48453973,1809.2,1809.1,0.1]
[1743392530954,16.66663973,1809.2,1809.1,0.1]
[1743392531181,14.57442073,1809.2,1809.1,0.1]
[1743392535398,8.52442073,1809.2,1809.1,0.1]
[1743392535599,3.0,1809.2,1809.1,0.8948]
[1743392535961,8.5273,1809.2,1809.1,0.1]
[1743392538299,15.3434,1809.2,1809.1,0.1]
[1743392538496,17.70054879,1809.2,1809.1,0.1]
[1743392539290,15.3434,1809.2,1809.1,0.1]
[1743392539493,14.5773,1809.2,1809.1,0.1]
[1743392541914,15.3434,1809.2,1809.1,0.1]
[1743392542589,15.33776134,1809.2,1809.1,0.1]
[1743392542920,14.57166134,1809.2,1809.1,0.1]
[1743392546419,2.99436134,1809.2,1809.1,0.1]
[1743392546812,8.52166134,1809.2,1809.1,0.1]
[1743392547922,8.52166134,1809.2,1809.1,5.553]
[1743392550427,11.57711,1809.3,1809.1,5.553]
[1743392550428,9.05,1809.3,1809.2,0.821]
[1743392550914,6.05,1809.3,1809.2,0.821]
[1743392551317,5.52586,1809.7,1809.3,6.34778]
[1743392551509,5.52586,1809.7,1809.5,0.821]
[1743392551826,3.0,1809.6,1809.5,0.821]
[1743392552033,3.0,1809.6,1809.5,6.274]
[1743392552192,8.52608,1809.6,1809.5,6.274]
[1743392552397,3.0,1809.6,1809.5,6.274]
[1743392552619,8.52608,1809.6,1809.5,6.274]
[1743392553797,5.52638,1809.5,1809.2,0.821]
[1743392553998,5.52692,1809.4,1809.3,5.453]
[1743392557137,5.5264,1809.5,1809.3,5.453]
[1743392558034,14.57609,1809.6,1809.3,5.453]
[1743392558207,5.52642,1809.5,1809.3,5.453]
[1743392558407,14.57609,1809.6,1809.3,5.453]
[1743392559034,20.1024,1809.6,1809.3,5.453]
[1743392561838,14.0524,1809.6,1809.3,5.453]
[1743392563349,5.5264,1809.5,1809.3,5.453]
[1743392564650,5.52651,1809.5,1809.2,0.821]
[1743392564953,8.52609,1809.6,1809.3,5.451]
[1743392565138,8.52582,1809.7,1809.3,10.97797]
[1743392565551,3.0,1809.5,1809.3,10.97797]
[1743392566249,3.0,1809.5,1809.3,5.451]
[1743392567339,6.05,1809.8,1809.3,5.451]
[1743392567547,3.0,1809.7,1809.4,0.7799]
[1743392567719,8.5259,1809.7,1809.4,0.7799]
[1743392567918,5.52628,1809.6,1809.4,0.7799]
[1743392569327,3.0,1809.7,1809.1,0.1]
[1743392569328,3.52082788,1809.7,1809.1,0.1]
[1743392569543,5.5273,1809.2,1809.1,0.1]
[1743392569744,14.5773,1809.2,1809.1,0.1]
[1743392570051,15.3971,1809.2,1809.1,0.1]
[1743392574659,15.80860354,1809.2,1809.1,0.1]
[1743392574958,17.94216589,1809.2,1809.1,0.1]
[1743392575851,14.98880354,1809.2,1809.1,0.1]
[1743392576721,6.05,1809.8,1809.3,5.52684]
[1743392576943,5.52547,1809.8,1809.4,10.97751]
[1743392577151,5.5258,1809.7,1809.4,5.451]
[1743392577350,5.52547,1809.8,1809.5,0.7799]
[1743392577649,3.0,1809.7,1809.5,0.7799]
[1743392577820,5.52547,1809.8,1809.5,0.7799]
[1743392578015,8.52621,1809.6,1809.3,0.7543]
[1743392578219,5.52668,1809.5,1809.4,5.451]
[1743392579248,3.0,1809.5,1809.1,6.3053]
[1743392579621,8.52705,1809.3,1809.1,6.3053]
[1743392580152,3.0,1809.3,1809.1,6.3053]
[1743392580327,8.52701,1809.3,1809.1,6.3053]
[1743392581756,3.0,1809.3,1809.1,6.3053]
[1743392581924,8.527,1809.3,1809.1,6.3053]
[1743392582123,5.5273,1809.2,1809.1,0.1]
[1743392582427,9.93273,1809.2,1809.1,0.1]
[1743392582622,15.98273,1809.2,1809.1,0.1]
[1743392584030,19.50765788,1809.2,1809.1,1e-05]
[1743392585051,19.92454839,1809.2,1809.1,1e-05]
[1743392588825,17.22352051,1809.2,1809.1,1e-05]
[1743392589142,16.39962051,1809.2,1809.1,1e-05]
[1743392589671,17.27832788,1809.2,1809.1,1e-05]
[1743392589829,14.5773,1809.2,1809.1,1e-05]
[1743392591326,8.5273,1809.2,1809.1,1e-05]
[1743392591741,8.5273,1809.2,1809.1,5.45101]
[1743392594665,3.0,1809.2,1809.1,5.45101]
[1743392598147,8.5273,1809.2,1809.1,5.45101]
[1743392598348,3.0,1809.2,1809.1,5.45101]
[1743392599181,8.5273,1809.2,1809.1,5.45101]
[1743392600474,3.0,1809.2,1809.1,5.45101]
[1743392601372,8.5273,1809.2,1809.1,5.45101]
[1743392601572,3.0,1809.2,1809.1,5.45101]
[1743392602074,5.52585,1809.7,1809.3,0.7701]
[1743392602241,3.0,1809.7,1809.3,0.7701]
[1743392602442,14.05204,1809.7,1809.3,6.29694]
[1743392602876,11.57554,1809.8,1809.3,5.52684]
[1743392603045,5.52578,1809.7,1809.4,0.7701]
[1743392603246,11.0518,1809.7,1809.5,5.45]
[1743392604252,5.52578,1809.7,1809.5,5.45]
[1743392604454,5.52608,1809.6,1809.5,5.45]
[1743392605753,3.0,1809.6,1809.1,1e-05]
[1743392606070,5.5273,1809.2,1809.1,1e-05]
[1743392609241,5.52699,1809.3,1809.1,1e-05]
[1743392609444,5.52699,1809.3,1809.1,0.77011]
[1743392610177,3.0,1809.3,1809.1,0.77011]
[1743392610674,3.0,1809.3,1809.1,15.27011]
[1743392611264,3.0,1809.3,1809.1,0.77011]
[1743392611462,5.52624,1809.6,1809.1,5.52739]
[1743392611667,5.5264,1809.5,1809.2,15.3196]
[1743392611977,3.0,1809.5,1809.2,20.84689]
[1743392612560,3.0,1809.5,1809.2,6.34689]
[1743392614174,8.52653,1809.5,1809.2,0.8196]
[1743392614576,14.05316,1809.5,1809.2,0.8196]
[1743392614889,8.52653,1809.5,1809.2,0.8196]
[1743392615682,3.0,1809.5,1809.2,6.34685]
[1743392615995,8.52582,1809.7,1809.3,0.7636]
[1743392616184,8.52582,1809.7,1809.4,10.97452]
[1743392616185,3.0,1809.7,1809.4,10.97452]